[Event "GrandPrix_30.05"]
[Site "Chess.com"]
[Date "2020.05.30"]
[Round "1"]
[White "anesar92"]
[Black "Jaka_Brilej"]
[Result "1/2-1/2"]
[WhiteElo "2405"]
[BlackElo "2123"]
[TimeControl "600+2"]
[EndTime "8:24:30 PDT"]
[Termination "Game drawn by agreement"]

1. e4 {[%clk 0:10:01.1]} 1... c5 {[%clk 0:10:00.1]} 2. Nf3 {[%clk 0:10:01.4]}
2... Nc6 {[%clk 0:09:58.9]} 3. d4 {[%clk 0:09:57.9]} 3... cxd4 {[%clk 0:10:00]}
4. Nxd4 {[%clk 0:09:59.8]} 4... Nf6 {[%clk 0:10:00.9]} 5. Nc3 {[%clk 0:09:59.6]}
5... e5 {[%clk 0:10:01.5]} 6. Ndb5 {[%clk 0:09:59.9]} 6... d6 {[%clk 0:10:02.6]}
7. Bg5 {[%clk 0:10:00.3]} 7... a6 {[%clk 0:10:03.4]} 8. Na3 {[%clk 0:10:01]}
8... b5 {[%clk 0:10:04.4]} 9. Bxf6 {[%clk 0:10:01.8]} 9... gxf6 {[%clk
0:10:04.6]} 10. Nd5 {[%clk 0:10:02.7]} 10... Bg7 {[%clk 0:10:05.4]} 11. g3
{[%clk 0:10:03.3]} 11... Ne7 {[%clk 0:09:57.8]} 12. Nxe7 {[%clk 0:09:53.5]}
12... Qxe7 {[%clk 0:09:56.6]} 13. Bg2 {[%clk 0:09:55]} 13... O-O {[%clk
0:09:55.4]} 14. O-O {[%clk 0:09:48.3]} 14... Rb8 {[%clk 0:09:41.4]} 15. c3
{[%clk 0:09:44]} 15... f5 {[%clk 0:09:42]} 16. exf5 {[%clk 0:09:31.4]} 16...
Bxf5 {[%clk 0:09:41.6]} 17. Nc2 {[%clk 0:09:32.8]} 17... Be6 {[%clk 0:09:31]}
18. Nb4 {[%clk 0:09:29.3]} 18... Rb6 {[%clk 0:09:17.8]} 19. Re1 {[%clk
0:08:47.5]} 19... Rc8 {[%clk 0:09:02]} 20. Qh5 {[%clk 0:08:37.2]} 20... Rc5
{[%clk 0:08:29.2]} 21. Be4 {[%clk 0:08:32.9]} 21... h6 {[%clk 0:08:25.9]} 22.
Rad1 {[%clk 0:08:32.1]} 22... Qg5 {[%clk 0:07:56.4]} 23. Qxg5 {[%clk 0:07:27.7]}
23... hxg5 {[%clk 0:07:56.2]} 24. Nd5 {[%clk 0:07:29.4]} 24... Bxd5 {[%clk
0:07:55.8]} 25. Bxd5 {[%clk 0:07:31.3]} 25... b4 {[%clk 0:07:42.5]} 26. c4
{[%clk 0:07:30.8]} 26... b3 {[%clk 0:07:32.9]} 27. a3 {[%clk 0:07:18.3]} 27...
Kf8 {[%clk 0:06:56.9]} 28. g4 {[%clk 0:07:11.9]} 28... Ke7 {[%clk 0:06:20.4]}
29. Rd3 {[%clk 0:07:03.9]} 29... Rc8 {[%clk 0:06:12.6]} 30. Kg2 {[%clk
0:06:48.9]} 30... Rh8 {[%clk 0:05:58]} 31. Ree3 {[%clk 0:06:45.1]} 31... Rhb8
{[%clk 0:05:50.4]} 32. Rh3 {[%clk 0:06:30.8]} 32... e4 {[%clk 0:05:20.5]} 33.
Rd2 {[%clk 0:06:20.5]} 33... Rc8 {[%clk 0:04:56.9]} 34. Re3 {[%clk 0:06:11.7]}
34... Be5 {[%clk 0:04:51.6]} 35. Rxe4 {[%clk 0:06:07.1]} 35... Rh8 {[%clk
0:04:51.5]} 36. h3 {[%clk 0:06:07.2]} 36... f6 {[%clk 0:04:49]} 37. Ree2 {[%clk
0:05:45.8]} 37... a5 {[%clk 0:04:48.5]} 38. Re4 {[%clk 0:05:03.4]} 38... Rbb8
{[%clk 0:04:07]} 39. Bc6 {[%clk 0:04:48.9]} 39... Kf7 {[%clk 0:03:45.2]} 40.
Ree2 {[%clk 0:04:17.7]} 40... Rhc8 {[%clk 0:03:23.3]} 41. Bd5+ {[%clk
0:04:16.3]} 41... Kg7 {[%clk 0:03:20.8]} 42. Rd3 {[%clk 0:04:13.3]} 42... Rc5
{[%clk 0:03:18.9]} 43. a4 {[%clk 0:03:16.8]} 43... Rb4 {[%clk 0:02:51.5]} 44.
Ree3 {[%clk 0:03:16.8]} 44... Bxb2 {[%clk 0:02:45.3]} 45. Rxb3 {[%clk 0:02:52]}
45... Rc7 {[%clk 0:02:26.7]} 46. Rbd3 {[%clk 0:01:43.9]} 46... Rxa4 {[%clk
0:02:08.8]} 47. Re8 {[%clk 0:01:44.3]} 47... Be5 {[%clk 0:01:43.4]} 48. Ra8
{[%clk 0:01:44.4]} 48... Rb4 {[%clk 0:01:09.7]} 49. Rxa5 {[%clk 0:01:39.7]}
49... Rb8 {[%clk 0:01:10.6]} 50. Rda3 {[%clk 0:01:36.9]} 50... Bd4 {[%clk
0:01:07.4]} 51. Ra8 {[%clk 0:01:28.9]} 51... Rcc8 {[%clk 0:00:59.1]} 52. R8a6
{[%clk 0:01:26]} 52... Rb2 {[%clk 0:00:57.9]} 53. Rf3 {[%clk 0:01:24.4]} 53...
Bc5 {[%clk 0:00:54.4]} 54. Kg3 {[%clk 0:01:03]} 54... Re8 {[%clk 0:00:53]} 55.
Rc6 {[%clk 0:01:03]} 55... Re7 {[%clk 0:00:52]} 56. Rc8 {[%clk 0:01:02.6]} 56...
Bd4 {[%clk 0:00:39.7]} 57. Rg8+ {[%clk 0:00:56.8]} 57... Kh7 {[%clk 0:00:40.6]}
58. Rd8 {[%clk 0:00:57.4]} 58... Be5+ {[%clk 0:00:41.2]} 59. Kg2 {[%clk
0:00:58]} 59... Kg7 {[%clk 0:00:39.9]} 60. Rd3 {[%clk 0:00:49.7]} 60... Bf4
{[%clk 0:00:34.7]} 61. Bf3 {[%clk 0:00:47.4]} 61... Be5 {[%clk 0:00:32.5]} 62.
Ra3 {[%clk 0:00:42.3]} 62... Bd4 {[%clk 0:00:30.4]} 63. Raa8 {[%clk 0:00:42.7]}
63... Rxf2+ {[%clk 0:00:15.8]} 64. Kg3 {[%clk 0:00:43]} 64... Rd2 {[%clk
0:00:16.8]} 65. Rg8+ {[%clk 0:00:41.8]} 65... Kh6 {[%clk 0:00:18]} 66. Rh8+
{[%clk 0:00:37.6]} 66... Rh7 {[%clk 0:00:19.1]} 67. Rxh7+ {[%clk 0:00:37.1]}
67... Kxh7 {[%clk 0:00:21]} 68. Be4+ {[%clk 0:00:37.8]} 68... Kg7 {[%clk
0:00:22.2]} 69. Rb8 {[%clk 0:00:33.2]} 69... Be5+ {[%clk 0:00:22.7]} 1/2-1/2

[Event "GrandPrix_30.05"]
[Site "Chess.com"]
[Date "2020.05.30"]
[Round "1"]
[White "vladislavkovalev"]
[Black "arminmusovic"]
[Result "1/2-1/2"]
[WhiteElo "2787"]
[BlackElo "2247"]
[TimeControl "600+2"]
[EndTime "8:24:31 PDT"]
[Termination "Game drawn by repetition"]

1. e4 {[%clk 0:10:01.9]} 1... c6 {[%clk 0:10:00]} 2. Nf3 {[%clk 0:10:02.5]} 2...
d5 {[%clk 0:10:01.1]} 3. Nc3 {[%clk 0:10:03.9]} 3... dxe4 {[%clk 0:10:02.6]} 4.
Nxe4 {[%clk 0:10:05.8]} 4... Nf6 {[%clk 0:10:04.3]} 5. Qe2 {[%clk 0:10:06.9]}
5... Nxe4 {[%clk 0:10:05.7]} 6. Qxe4 {[%clk 0:10:08.8]} 6... Qd5 {[%clk
0:10:07.4]} 7. Qf4 {[%clk 0:10:08.1]} 7... Qf5 {[%clk 0:10:06.7]} 8. Qxf5 {[%clk
0:09:53.5]} 8... Bxf5 {[%clk 0:10:08.6]} 9. d3 {[%clk 0:09:55.1]} 9... Na6
{[%clk 0:10:07.9]} 10. Bd2 {[%clk 0:09:54.7]} 10... e6 {[%clk 0:10:03.1]} 11. g3
{[%clk 0:09:51]} 11... Nb4 {[%clk 0:09:58]} 12. Kd1 {[%clk 0:09:27.6]} 12... Be7
{[%clk 0:09:26.1]} 13. Bg2 {[%clk 0:09:25.1]} 13... O-O-O {[%clk 0:09:15.4]} 14.
a3 {[%clk 0:08:58.8]} 14... Nd5 {[%clk 0:09:08.4]} 15. Re1 {[%clk 0:08:50.7]}
15... h6 {[%clk 0:08:52.6]} 16. Ke2 {[%clk 0:08:07]} 16... Bf6 {[%clk 0:08:29]}
17. Rab1 {[%clk 0:08:07.8]} 17... Nb6 {[%clk 0:08:28.4]} 18. Bc3 {[%clk
0:07:58]} 18... Na4 {[%clk 0:08:01]} 19. Bxf6 {[%clk 0:07:49.9]} 19... gxf6
{[%clk 0:08:02.9]} 20. Kd2 {[%clk 0:07:44.3]} 20... Rd6 {[%clk 0:07:42.4]} 21.
b3 {[%clk 0:07:32.2]} 21... Nc5 {[%clk 0:07:29]} 22. Re3 {[%clk 0:07:22.4]}
22... Ne4+ {[%clk 0:07:11.8]} 23. Ke1 {[%clk 0:07:01.2]} 23... Nc3 {[%clk
0:07:13.1]} 24. Ra1 {[%clk 0:07:00.4]} 24... Rhd8 {[%clk 0:07:00.6]} 25. Nh4
{[%clk 0:06:48]} 25... Bh7 {[%clk 0:06:47.9]} 26. Kd2 {[%clk 0:06:47]} 26... Nb5
{[%clk 0:06:33.3]} 27. Nf3 {[%clk 0:06:24.6]} 27... a5 {[%clk 0:05:57.7]} 28. a4
{[%clk 0:06:22.8]} 28... Nc7 {[%clk 0:05:56.8]} 29. Nh4 {[%clk 0:06:19.1]} 29...
Rd4 {[%clk 0:05:31.4]} 30. f4 {[%clk 0:05:45.9]} 30... Na6 {[%clk 0:05:23.4]}
31. f5 {[%clk 0:05:33.2]} 31... e5 {[%clk 0:05:20.7]} 32. Be4 {[%clk 0:05:25.1]}
32... Nc5 {[%clk 0:05:17.3]} 33. Kc3 {[%clk 0:05:25.6]} 33... Kc7 {[%clk
0:05:05.4]} 34. Nf3 {[%clk 0:05:25.7]} 34... Rb4 {[%clk 0:04:57.8]} 35. Nd2
{[%clk 0:05:19.4]} 35... b6 {[%clk 0:04:40.1]} 36. Nc4 {[%clk 0:05:17.4]} 36...
Nb7 {[%clk 0:04:35.3]} 37. Kb2 {[%clk 0:05:09.1]} 37... Nc5 {[%clk 0:04:36.5]}
38. Ra3 {[%clk 0:05:02.1]} 38... Nxe4 {[%clk 0:04:24.8]} 39. dxe4 {[%clk
0:04:56.5]} 39... Rd4 {[%clk 0:04:25.7]} 40. Kc3 {[%clk 0:04:32.2]} 40... Rd1
{[%clk 0:04:11.2]} 41. Re2 {[%clk 0:04:22.3]} 41... Rb1 {[%clk 0:04:03.6]} 42.
Ra2 {[%clk 0:03:54.8]} 42... Bg8 {[%clk 0:03:59.1]} 43. Re3 {[%clk 0:02:28.4]}
43... Bh7 {[%clk 0:03:51.1]} 44. Rd3 {[%clk 0:02:17.5]} 44... Rh1 {[%clk
0:03:39.2]} 45. h4 {[%clk 0:01:33]} 45... Re1 {[%clk 0:03:31.2]} 46. Nd6 {[%clk
0:00:50.3]} 46... Kd7 {[%clk 0:01:32.3]} 47. Kd2 {[%clk 0:00:50.5]} 47... Rg1
{[%clk 0:01:21.8]} 48. Rb2 {[%clk 0:00:10.9]} 48... Rd4 {[%clk 0:01:10]} 49.
Rxd4 {[%clk 0:00:09.8]} 49... exd4 {[%clk 0:01:11.5]} 50. Nc4 {[%clk 0:00:11.5]}
50... Kc7 {[%clk 0:01:11.3]} 51. Kd3 {[%clk 0:00:06.9]} 51... Rd1+ {[%clk
0:01:12.5]} 52. Ke2 {[%clk 0:00:07.7]} 52... Rg1 {[%clk 0:01:14.4]} 53. Kf2
{[%clk 0:00:08.8]} 53... Rc1 {[%clk 0:01:15.2]} 54. Nd2 {[%clk 0:00:08.9]} 54...
Kd6 {[%clk 0:01:10.1]} 55. Nf3 {[%clk 0:00:09.9]} 55... Kc5 {[%clk 0:01:10.4]}
56. Ne1 {[%clk 0:00:10.6]} 56... Kb4 {[%clk 0:01:08.3]} 57. Ke2 {[%clk
0:00:04.4]} 57... Kc3 {[%clk 0:01:08.7]} 58. Ra2 {[%clk 0:00:05.9]} 58... c5
{[%clk 0:01:01.5]} 59. Kf2 {[%clk 0:00:04.6]} 59... Rd1 {[%clk 0:00:57.1]} 60.
Ke2 {[%clk 0:00:05.2]} 60... Rd2+ {[%clk 0:00:57.3]} 61. Kf3 {[%clk 0:00:06.7]}
61... Rd1 {[%clk 0:00:40.1]} 62. Ke2 {[%clk 0:00:07.7]} 62... Rd2+ {[%clk
0:00:36.2]} 63. Kf3 {[%clk 0:00:09.1]} 63... Rd1 {[%clk 0:00:17.4]} 64. Ke2
{[%clk 0:00:10.4]} 1/2-1/2

[Event "GrandPrix_30.05"]
[Site "Chess.com"]
[Date "2020.05.30"]
[Round "1"]
[White "GM_dmitrij"]
[Black "rfhfb"]
[Result "1-0"]
[WhiteElo "2492"]
[BlackElo "2123"]
[TimeControl "600+2"]
[EndTime "8:24:40 PDT"]
[Termination "GM_dmitrij won by resignation"]

1. e4 {[%clk 0:10:01.5]} 1... e5 {[%clk 0:09:57]} 2. Nf3 {[%clk 0:09:55.4]} 2...
Nc6 {[%clk 0:09:56]} 3. Bc4 {[%clk 0:09:53.8]} 3... Bc5 {[%clk 0:09:56.5]} 4. c3
{[%clk 0:09:54.7]} 4... Nf6 {[%clk 0:09:57.4]} 5. d3 {[%clk 0:09:56.2]} 5... d6
{[%clk 0:09:56.3]} 6. O-O {[%clk 0:09:54.2]} 6... Bb6 {[%clk 0:09:52.9]} 7. Nbd2
{[%clk 0:09:53.5]} 7... O-O {[%clk 0:09:53.3]} 8. Bb3 {[%clk 0:09:47.4]} 8...
Ne7 {[%clk 0:09:51.2]} 9. Nc4 {[%clk 0:09:39]} 9... Ng6 {[%clk 0:09:52.1]} 10.
a4 {[%clk 0:09:30.4]} 10... c6 {[%clk 0:09:23.5]} 11. Nxb6 {[%clk 0:09:30.1]}
11... Qxb6 {[%clk 0:09:11.9]} 12. a5 {[%clk 0:09:03.7]} 12... Qc7 {[%clk
0:09:04.2]} 13. Bg5 {[%clk 0:09:02.2]} 13... Nd7 {[%clk 0:08:18.8]} 14. d4
{[%clk 0:08:42.7]} 14... h6 {[%clk 0:08:15.6]} 15. Be3 {[%clk 0:08:40.8]} 15...
Nf6 {[%clk 0:08:09.4]} 16. Bc2 {[%clk 0:08:26.9]} 16... Be6 {[%clk 0:07:45.3]}
17. h3 {[%clk 0:08:17.6]} 17... Rfd8 {[%clk 0:06:33.1]} 18. Qc1 {[%clk 0:07:51]}
18... b6 {[%clk 0:05:57]} 19. b3 {[%clk 0:07:00]} 19... c5 {[%clk 0:04:59.4]}
20. d5 {[%clk 0:05:34.7]} 20... Bd7 {[%clk 0:04:50.9]} 21. axb6 {[%clk
0:05:32.6]} 21... axb6 {[%clk 0:04:49.6]} 22. Qb2 {[%clk 0:05:27.5]} 22... Nh5
{[%clk 0:04:29.6]} 23. Kh2 {[%clk 0:05:12.3]} 23... Nhf4 {[%clk 0:03:30.1]} 24.
Ng1 {[%clk 0:05:02.3]} 24... Bb5 {[%clk 0:03:01.8]} 25. c4 {[%clk 0:04:52.6]}
25... Bd7 {[%clk 0:03:00.7]} 26. g3 {[%clk 0:04:41.2]} 26... Nh5 {[%clk
0:03:00.6]} 27. Ra2 {[%clk 0:04:24.6]} 27... Ne7 {[%clk 0:02:36.7]} 28. Rfa1
{[%clk 0:04:18.9]} 28... Qb7 {[%clk 0:02:30.4]} 29. b4 {[%clk 0:03:01.1]} 29...
Rxa2 {[%clk 0:02:08.8]} 30. Rxa2 {[%clk 0:03:03]} 30... Ra8 {[%clk 0:02:05.2]}
31. Rxa8+ {[%clk 0:02:53.6]} 31... Qxa8 {[%clk 0:02:07.1]} 32. bxc5 {[%clk
0:02:55.3]} 32... bxc5 {[%clk 0:02:07.8]} 33. Qb6 {[%clk 0:02:56.4]} 33... Nf6
{[%clk 0:00:58.9]} 34. Qxd6 {[%clk 0:02:51.2]} 34... Nc8 {[%clk 0:01:00.1]} 35.
Qxe5 {[%clk 0:02:33.1]} 35... Qa2 {[%clk 0:00:59.5]} 36. Qc3 {[%clk 0:02:32.1]}
36... Nd6 {[%clk 0:00:30.8]} 37. e5 {[%clk 0:02:32.9]} 37... Nfe4 {[%clk
0:00:30.1]} 38. Qd3 {[%clk 0:01:36.8]} 38... Bf5 {[%clk 0:00:30.7]} 39. exd6
{[%clk 0:00:55]} 39... Nxd6 {[%clk 0:00:31.3]} 40. Bb3 {[%clk 0:00:53.4]} 40...
Qb2 {[%clk 0:00:17.1]} 41. Qd1 {[%clk 0:00:52]} 41... Ne4 {[%clk 0:00:17.3]} 42.
Qf3 {[%clk 0:00:29.7]} 42... Bg6 {[%clk 0:00:13.9]} 43. Ba4 {[%clk 0:00:30.5]}
43... Qa2 {[%clk 0:00:13.5]} 44. Bb5 {[%clk 0:00:30]} 44... Qb1 {[%clk
0:00:10.9]} 45. Qf4 {[%clk 0:00:27.7]} 45... Qd3 {[%clk 0:00:10.6]} 46. Nf3
{[%clk 0:00:23.6]} 46... Qd1 {[%clk 0:00:10.4]} 47. Ne5 {[%clk 0:00:20.7]} 47...
Nc3 {[%clk 0:00:09]} 48. Nxg6 {[%clk 0:00:17.3]} 48... fxg6 {[%clk 0:00:05]} 49.
Qb8+ {[%clk 0:00:06.7]} 49... Kh7 {[%clk 0:00:06]} 50. g4 {[%clk 0:00:04.4]}
50... Ne2 {[%clk 0:00:07.1]} 51. Kg2 {[%clk 0:00:05.2]} 51... Qg1+ {[%clk
0:00:07.6]} 52. Kf3 {[%clk 0:00:06.7]} 52... Nc3 {[%clk 0:00:09.5]} 53. Qg3
{[%clk 0:00:06.5]} 53... Qh1+ {[%clk 0:00:07.9]} 54. Qg2 {[%clk 0:00:06.5]}
54... Qd1+ {[%clk 0:00:08.8]} 55. Kg3 {[%clk 0:00:07.5]} 55... Ne2+ {[%clk
0:00:10.5]} 56. Kh2 {[%clk 0:00:08.9]} 56... Qd3 {[%clk 0:00:07]} 57. Ba6 {[%clk
0:00:09.3]} 57... Qd1 {[%clk 0:00:05.5]} 58. Bc8 {[%clk 0:00:08.9]} 58... Qd3
{[%clk 0:00:05.7]} 59. Be6 {[%clk 0:00:09.3]} 59... Qxc4 {[%clk 0:00:06.1]} 60.
h4 {[%clk 0:00:09.3]} 60... Qd3 {[%clk 0:00:06.7]} 61. h5 {[%clk 0:00:09.8]}
61... Kh8 {[%clk 0:00:05.3]} 62. hxg6 {[%clk 0:00:11.7]} 62... Qxg6 {[%clk
0:00:06.8]} 63. Qf3 {[%clk 0:00:11.9]} 63... Qd3 {[%clk 0:00:02.9]} 64. Qf8+
{[%clk 0:00:12.5]} 64... Kh7 {[%clk 0:00:04]} 65. Bf5+ {[%clk 0:00:14.4]} 1-0

[Event "GrandPrix_30.05"]
[Site "Chess.com"]
[Date "2020.05.30"]
[Round "1"]
[White "Promacherr"]
[Black "DaVinci81"]
[Result "0-1"]
[WhiteElo "2145"]
[BlackElo "2534"]
[TimeControl "600+2"]
[EndTime "8:24:47 PDT"]
[Termination "DaVinci81 won by checkmate"]

1. d4 {[%clk 0:10:01.2]} 1... d5 {[%clk 0:09:58.9]} 2. Bf4 {[%clk 0:10:01.8]}
2... c5 {[%clk 0:09:57.9]} 3. e3 {[%clk 0:10:03]} 3... Nc6 {[%clk 0:09:57.3]} 4.
c3 {[%clk 0:10:04.1]} 4... Qb6 {[%clk 0:09:44.7]} 5. Qb3 {[%clk 0:10:03.4]} 5...
c4 {[%clk 0:09:37.9]} 6. Qc2 {[%clk 0:10:04.3]} 6... Nf6 {[%clk 0:09:32.4]} 7.
Nd2 {[%clk 0:10:02.7]} 7... g6 {[%clk 0:09:30]} 8. e4 {[%clk 0:09:48.5]} 8...
dxe4 {[%clk 0:09:00.4]} 9. Nxc4 {[%clk 0:09:43]} 9... Qd8 {[%clk 0:09:00.3]} 10.
Ne5 {[%clk 0:09:21.2]} 10... Bg7 {[%clk 0:08:55.2]} 11. Ne2 {[%clk 0:08:56.2]}
11... O-O {[%clk 0:08:51.3]} 12. Ng3 {[%clk 0:08:54.9]} 12... Nd5 {[%clk
0:08:46.5]} 13. Nxc6 {[%clk 0:08:15.2]} 13... bxc6 {[%clk 0:08:46.7]} 14. Qxe4
{[%clk 0:08:16]} 14... Nxf4 {[%clk 0:08:43.2]} 15. Qxf4 {[%clk 0:08:17.9]} 15...
e5 {[%clk 0:08:44]} 16. dxe5 {[%clk 0:08:19.2]} 16... Bxe5 {[%clk 0:08:38.1]}
17. Qf3 {[%clk 0:08:17.2]} 17... Rb8 {[%clk 0:08:25]} 18. Bc4 {[%clk 0:08:11.3]}
18... Bxg3 {[%clk 0:07:48.8]} 19. hxg3 {[%clk 0:08:04.2]} 19... Qe7+ {[%clk
0:07:28.4]} 20. Kf1 {[%clk 0:07:43.8]} 20... Rxb2 {[%clk 0:07:27.5]} 21. Re1
{[%clk 0:07:39]} 21... Qc5 {[%clk 0:07:16.3]} 22. Rh4 {[%clk 0:06:36.7]} 22...
Be6 {[%clk 0:06:51.2]} 23. Bxe6 {[%clk 0:04:08.2]} 23... fxe6 {[%clk 0:06:51.6]}
24. Rf4 {[%clk 0:04:09.5]} 24... Rxf4 {[%clk 0:06:35.6]} 25. Qxf4 {[%clk
0:04:11.4]} 25... Qxc3 {[%clk 0:05:41.3]} 26. Rd1 {[%clk 0:04:05.8]} 26... Rb1
{[%clk 0:05:19.1]} 27. Rxb1 {[%clk 0:03:48]} 27... Qd3+ {[%clk 0:05:19.6]} 28.
Kg1 {[%clk 0:03:49.2]} 28... Qxb1+ {[%clk 0:05:20.7]} 29. Kh2 {[%clk 0:03:50.2]}
29... Qb6 {[%clk 0:04:10.8]} 30. Qf6 {[%clk 0:03:19.1]} 30... c5 {[%clk
0:04:10.5]} 31. Qe7 {[%clk 0:03:17.9]} 31... Qc6 {[%clk 0:04:01.2]} 32. Qxa7
{[%clk 0:03:15.6]} 32... c4 {[%clk 0:04:02.4]} 33. Qb8+ {[%clk 0:03:16.1]} 33...
Kf7 {[%clk 0:04:01.1]} 34. Qa7+ {[%clk 0:03:16.9]} 34... Kf6 {[%clk 0:03:59.2]}
35. Qd4+ {[%clk 0:03:04.5]} 35... e5 {[%clk 0:03:59]} 36. Qd8+ {[%clk
0:03:05.1]} 36... Ke6 {[%clk 0:03:55]} 37. Qg8+ {[%clk 0:03:05.3]} 37... Kd6
{[%clk 0:03:53.4]} 38. Qxh7 {[%clk 0:02:57.6]} 38... Kc5 {[%clk 0:03:51.3]} 39.
Qa7+ {[%clk 0:02:46.8]} 39... Kb4 {[%clk 0:03:45.9]} 40. Qb8+ {[%clk 0:02:44.1]}
40... Ka3 {[%clk 0:03:04.7]} 41. Qb1 {[%clk 0:02:22.2]} 41... Qd5 {[%clk
0:02:49.1]} 42. Qxg6 {[%clk 0:02:05.7]} 42... Kxa2 {[%clk 0:02:47.2]} 43. Qc2+
{[%clk 0:02:02.2]} 43... Ka3 {[%clk 0:02:48]} 44. Qc3+ {[%clk 0:02:04.1]} 44...
Ka4 {[%clk 0:02:48.1]} 45. g4 {[%clk 0:01:49.5]} 45... Qd4 {[%clk 0:02:42]} 46.
Qc2+ {[%clk 0:01:49.7]} 46... Kb4 {[%clk 0:02:40.5]} 47. Qf5 {[%clk 0:01:17.3]}
47... c3 {[%clk 0:02:22.8]} 48. g5 {[%clk 0:01:14.6]} 48... Qh4+ {[%clk
0:02:05.9]} 49. Kg1 {[%clk 0:01:07.6]} 49... Qf4 {[%clk 0:01:57.7]} 50. Qb1+
{[%clk 0:01:08.2]} 50... Kc4 {[%clk 0:01:56.5]} 51. g6 {[%clk 0:01:06.9]} 51...
Qg4 {[%clk 0:01:46.1]} 52. Qc2 {[%clk 0:00:29.3]} 52... e4 {[%clk 0:01:41.3]}
53. Qa4+ {[%clk 0:00:28.7]} 53... Kd3 {[%clk 0:01:41.7]} 54. Qb5+ {[%clk
0:00:22.8]} 54... Kd2 {[%clk 0:01:33.4]} 55. Qd5+ {[%clk 0:00:22.4]} 55... Kc1
{[%clk 0:01:23.3]} 56. Qf7 {[%clk 0:00:19]} 56... Qd1+ {[%clk 0:01:20.9]} 57.
Kh2 {[%clk 0:00:19.5]} 57... Qh5+ {[%clk 0:01:20]} 58. Kg1 {[%clk 0:00:20.6]}
58... c2 {[%clk 0:01:15]} 59. Qf6 {[%clk 0:00:11.2]} 59... Qd1+ {[%clk
0:00:44.8]} 60. Kh2 {[%clk 0:00:11.5]} 60... e3 {[%clk 0:00:37.8]} 61. Qa1+
{[%clk 0:00:10.4]} 61... Kd2 {[%clk 0:00:38.6]} 62. Qd4+ {[%clk 0:00:12.3]}
62... Ke1 {[%clk 0:00:34.7]} 63. Qxe3+ {[%clk 0:00:11.4]} 63... Kf1 {[%clk
0:00:35.6]} 64. g7 {[%clk 0:00:08.8]} 64... Qh5+ {[%clk 0:00:32.5]} 65. Qh3
{[%clk 0:00:09.6]} 65... Qe5+ {[%clk 0:00:33.4]} 66. Qg3 {[%clk 0:00:10.5]}
66... Qh5+ {[%clk 0:00:33.3]} 67. Qh3 {[%clk 0:00:11.2]} 67... Qd5 {[%clk
0:00:29.7]} 68. Qc3 {[%clk 0:00:07]} 68... Qxg2# {[%clk 0:00:21.4]} 0-1